bitfinex-derivatives/quotes_BTCF0:USTF0_20250417
["timestamp","ask_amount","ask_price","bid_price","bid_amount"]
[1744853534422,0.005,84462.0,84461.0,0.3311073]
[1744853534619,0.00508,84462.0,84461.0,0.3311073]
[1744853534818,0.005,84462.0,84461.0,0.3311073]
[1744853535015,0.00508,84462.0,84461.0,0.3311073]
[1744853539213,0.00010801,84471.0,84470.0,0.1183946]
[1744853539418,0.00010801,84471.0,84470.0,0.2883946]
[1744853539924,0.1183841,84478.0,84477.0,0.1775738]
[1744853540129,0.11849211,84478.0,84477.0,0.1775738]
[1744853540320,0.11849211,84478.0,84477.0,0.2105738]
[1744853541535,0.11849211,84478.0,84477.0,0.2406738]
[1744853541720,0.00010801,84478.0,84477.0,0.2406738]
[1744853541921,0.0323,84479.0,84478.0,0.1183834]
[1744853542223,0.0323,84479.0,84478.0,0.2983834]
[1744853542424,0.0323,84479.0,84478.0,0.3614834]
[1744853542728,0.03238,84479.0,84478.0,0.3614834]
[1744853544528,8e-05,84479.0,84478.0,0.3614834]
[1744853545422,0.118462,84479.0,84478.0,0.3614834]
[1744853545632,0.181762,84479.0,84478.0,0.3614834]
[1744853546025,0.0591964,84473.0,84472.0,0.1183864]
[1744853546220,0.0591926,84477.0,84476.0,0.1183848]
[1744853546624,0.1222926,84477.0,84476.0,0.1183848]
[1744853547338,0.1222926,84477.0,84476.0,0.1509848]
[1744853550930,8e-05,84479.0,84476.0,0.2617926]
[1744853551132,8e-05,84479.0,84478.0,0.1183834]
[1744853551322,0.118462,84479.0,84478.0,0.2783834]
[1744853551637,0.118462,84479.0,84478.0,0.1183834]
[1744853552231,0.151062,84479.0,84478.0,0.1183834]
[1744853557028,0.151062,84479.0,84478.0,0.1513834]
[1744853559431,0.03268,84479.0,84478.0,0.3319834]
[1744853562135,8e-05,84479.0,84478.0,0.3319834]
[1744853562535,0.0326,84486.0,84485.0,0.1183736]
[1744853562744,0.0326,84486.0,84485.0,0.2983736]
[1744853563240,0.0326,84486.0,84485.0,0.3932736]
[1744853563842,0.03268,84486.0,84485.0,0.3932736]
[1744853564443,0.0326,84486.0,84485.0,0.3932736]
[1744853564646,0.03268,84486.0,84485.0,0.3932736]
[1744853565237,0.1510522,84486.0,84485.0,0.2983736]
[1744853566045,0.1510522,84486.0,84485.0,0.3638736]
[1744853568740,0.1510522,84486.0,84485.0,0.1838736]
[1744853569649,0.1510522,84486.0,84485.0,0.1183736]
[1744853570444,0.1510522,84486.0,84485.0,0.2983736]
[1744853570650,0.1510522,84486.0,84485.0,0.1183736]
[1744853577562,0.5118522,84486.0,84485.0,0.1183736]
[1744853579271,0.118375,84484.0,84483.0,0.0327]
[1744853579466,0.118375,84484.0,84483.0,0.1510764]
[1744853581976,0.118375,84484.0,84483.0,0.0327]
[1744853582171,0.118375,84484.0,84483.0,0.1510764]
[1744853582578,0.118375,84484.0,84483.0,0.1183764]
[1744853583266,0.118375,84484.0,84483.0,0.1504764]
[1744853590679,0.1776394,84486.0,84485.0,0.1183736]
[1744853590879,8e-05,84486.0,84485.0,0.2983736]
[1744853591181,0.005,84488.0,84487.0,0.1183708]
[1744853591477,0.1233694,84488.0,84487.0,0.2883708]
[1744853591883,0.00508,84488.0,84487.0,0.2883708]
[1744853592780,0.005,84488.0,84487.0,0.2883708]
[1744853593584,0.00508,84488.0,84487.0,0.2883708]
[1744853593780,0.1233694,84488.0,84487.0,0.2883708]
[1744853594286,0.1234494,84488.0,84487.0,0.2883708]
[1744853594787,0.4842494,84488.0,84487.0,0.17]
[1744853594982,0.1183722,84487.0,84486.0,0.1183721]
[1744853595287,0.1829722,84487.0,84486.0,0.1183721]
[1744853595486,0.1829722,84487.0,84486.0,0.1795721]
[1744853597493,0.1829722,84487.0,84486.0,0.0612]
[1744853597689,0.1775721,84481.0,84480.0,0.1183801]
[1744853597888,0.5383721,84481.0,84480.0,0.1183801]
[1744853598095,0.5709721,84481.0,84480.0,0.1183801]
[1744853598593,0.5709721,84481.0,84480.0,0.1828801]
[1744853599093,0.5709721,84481.0,84480.0,0.0645]
[1744853599392,0.6024721,84481.0,84480.0,0.1828806]
[1744853603689,0.0592031,84462.0,84454.0,0.0592057]
[1744853603887,0.01,84455.0,84454.0,0.2368232]
[1744853604087,0.0323,84461.0,84460.0,0.1184087]
[1744853604292,0.3608,84471.0,84470.0,0.1183946]
[1744853604488,0.3608,84471.0,84470.0,0.2683946]
[1744853605193,0.4792732,84471.0,84470.0,0.2683946]
[1744853605395,0.1184732,84471.0,84470.0,0.2683946]
[1744853605597,0.1184732,84471.0,84470.0,0.3328946]
[1744853605893,8e-05,84471.0,84470.0,0.3328946]
[1744853606197,8e-05,84471.0,84470.0,0.6936946]
[1744853606492,0.00017729,84479.0,84478.0,0.1183834]
[1744853606793,0.00017729,84479.0,84478.0,0.2683834]
[1744853607388,0.00017729,84479.0,84478.0,0.3648834]
[1744853608486,0.00017729,84479.0,84478.0,0.37650988]
[1744853610984,0.00025729,84479.0,84478.0,0.37650988]
[1744853611394,0.005,84488.0,84487.0,0.1183708]
[1744853611595,0.005,84488.0,84487.0,0.2983708]
[1744853612290,0.005,84488.0,84487.0,0.3918708]
[1744853612697,0.0383,84488.0,84487.0,0.3918708]
[1744853613102,0.03838,84488.0,84487.0,0.3918708]
[1744853613493,0.03838,84488.0,84487.0,0.2118708]
[1744853613792,0.03838,84488.0,84487.0,0.3818708]
[1744853614809,0.00508,84488.0,84487.0,0.3818708]
[1744853616900,0.3608,84495.0,84494.0,0.118361]
[1744853617099,0.3608,84495.0,84494.0,0.288361]
[1744853617798,0.0308,84496.0,84495.0,0.1183596]
[1744853617999,0.0308,84496.0,84495.0,0.1824596]
[1744853618201,0.03088,84496.0,84495.0,0.1824596]
[1744853618395,8e-05,84496.0,84495.0,0.1824596]
[1744853621001,0.0308,84498.0,84497.0,0.1183568]
[1744853621700,0.03088,84498.0,84497.0,0.1823568]
[1744853621911,0.03088,84498.0,84497.0,0.3323568]
[1744853622107,0.03088,84498.0,84497.0,0.1823568]
[1744853622608,0.03088,84498.0,84497.0,0.3693568]
[1744853623307,0.03088,84498.0,84497.0,0.3683568]
[1744853623506,0.03088,84498.0,84497.0,0.3703568]
[1744853627109,0.03088,84498.0,84497.0,0.3683568]
[1744853627306,0.03088,84498.0,84497.0,0.3703568]
[1744853632709,0.1,84500.0,84499.0,0.118354]
[1744853632907,0.1,84500.0,84499.0,0.298354]
[1744853633302,0.3608,84525.0,84499.0,1.1076]
[1744853633501,0.3608,84525.0,84524.0,0.118319]
[1744853633702,0.36106573,84525.0,84524.0,0.278319]
[1744853633905,0.36106573,84525.0,84524.0,0.118319]
[1744853634100,0.3608,84525.0,84517.0,0.0657]
[1744853634303,0.1183288,84518.0,84517.0,0.1183226]
[1744853634807,0.1183288,84518.0,84517.0,0.1496226]
[1744853635400,0.1183288,84518.0,84517.0,0.1526226]
[1744853635810,0.1183288,84518.0,84517.0,0.2117852]
[1744853636710,0.1499288,84518.0,84517.0,0.2117852]
[1744853637316,0.5107288,84518.0,84517.0,0.0621626]
[1744853637513,0.5107288,84518.0,84517.0,0.003]
[1744853638402,0.5866488,84518.0,84517.0,0.003]
[1744853639024,0.5866488,84518.0,84504.0,0.00017755]
[1744853639025,0.1183456,84505.0,84504.0,0.00017755]
[1744853639222,0.4791456,84505.0,84504.0,0.00017755]
[1744853639423,0.4791456,84505.0,84504.0,0.11852455]
[1744853639826,0.5098456,84505.0,84504.0,0.11852455]
[1744853640325,0.5098456,84505.0,84504.0,0.00017755]
[1744853641118,0.5098456,84505.0,84504.0,0.12252455]
[1744853641718,0.4791456,84505.0,84504.0,0.12052455]
[1744853641924,0.5425456,84505.0,84504.0,0.12052455]
[1744853642830,0.5425456,84505.0,84504.0,0.11852455]
[1744853643125,0.5425456,84505.0,84504.0,0.12052455]
[1744853645426,0.5425456,84505.0,84504.0,0.00217755]
[1744853647933,0.5425456,84505.0,84504.0,1e-08]
[1744853649524,0.1183694,84488.0,84477.0,0.0591923]
[1744853649833,0.1183722,84486.0,84484.0,0.1183738]
[1744853650023,0.1183722,84486.0,84485.0,0.12346323]
[1744853650221,0.1183722,84486.0,84485.0,0.00508963]
[1744853650429,0.1183862,84477.0,84476.0,0.1183852]
[1744853650637,0.1183862,84477.0,84476.0,0.1935852]
[1744853651033,0.1509862,84477.0,84476.0,0.1935852]
[1744853651632,0.1509862,84477.0,84476.0,0.0652]
[1744853651828,0.118396,84469.0,84468.0,0.00017755]
[1744853652035,0.1184087,84460.0,84459.0,0.0050912]
[1744853652436,0.1184087,84460.0,84459.0,0.1827025]
[1744853652634,0.1184087,84460.0,84459.0,0.2457025]
[1744853653229,0.1184087,84460.0,84459.0,0.2487025]
[1744853653435,0.0326,84463.0,84460.0,0.0592038]
[1744853653635,0.05937645,84468.0,84467.0,0.1183989]
[1744853654441,0.05937645,84468.0,84467.0,0.1797989]
[1744853654740,0.00017755,84468.0,84467.0,0.1797989]
[1744853654940,0.11857495,84468.0,84467.0,0.1837989]
[1744853655140,0.00017755,84468.0,84467.0,0.1837989]
[1744853655536,0.00017755,84468.0,84467.0,0.3547989]
[1744853655730,0.00025755,84468.0,84467.0,0.3547989]
[1744853656434,0.00017755,84468.0,84467.0,0.3547989]
[1744853656633,0.00025755,84468.0,84467.0,0.3547989]
[1744853658641,0.11865495,84468.0,84467.0,0.2364]
[1744853658833,0.15045495,84468.0,84467.0,0.0664]
[1744853659038,0.1184087,84460.0,84459.0,0.1234985]
[1744853659646,0.1184087,84460.0,84459.0,0.1564985]
[1744853660235,0.4792087,84460.0,84459.0,0.0380912]
[1744853660546,0.4792087,84460.0,84459.0,0.0430912]
[1744853661050,0.5106087,84460.0,84459.0,0.0430912]
[1744853661250,0.5106087,84460.0,84459.0,0.0460912]
[1744853661747,0.5106087,84460.0,84459.0,0.1645013]
[1744853662450,0.5106087,84460.0,84459.0,0.0130912]
[1744853664744,0.5106087,84460.0,84459.0,0.1315013]
[1744853665547,0.5106087,84460.0,84459.0,0.1973013]
[1744853667449,0.1498087,84460.0,84459.0,0.1973013]
[1744853667645,0.5106087,84460.0,84459.0,0.1973013]
[1744853668451,0.1498087,84460.0,84459.0,0.1973013]
[1744853668753,0.5106087,84460.0,84459.0,0.1973013]
[1744853669253,0.1498087,84460.0,84459.0,0.1973013]
[1744853669447,0.1184087,84460.0,84459.0,0.3573013]
[1744853669648,0.1184887,84460.0,84459.0,0.1973013]
[1744853669955,0.1948466,84462.0,84461.0,0.1184073]
[1744853670149,0.1948466,84462.0,84461.0,0.2984073]
[1744853670455,0.1948466,84462.0,84461.0,0.1184073]
[1744853670656,0.1948466,84462.0,84461.0,0.1795073]
[1744853671152,0.1948466,84462.0,84461.0,0.1815073]
[1744853671346,0.1184066,84462.0,84461.0,0.1815073]
[1744853671542,0.1184066,84462.0,84461.0,0.1865073]
[1744853682962,0.1184066,84462.0,84461.0,0.007]
[1744853683159,0.1818066,84462.0,84461.0,0.007]
[1744853683351,0.1184087,84460.0,84459.0,1e-08]
[1744853684565,0.1184087,84460.0,84459.0,0.00500001]
[1744853684763,0.1184283,84446.0,84445.0,0.0314]
[1744853685065,0.1184325,84443.0,84442.0,0.0327]
[1744853685260,0.0592154,84445.0,84441.0,0.0314]
[1744853685261,0.1184339,84442.0,84441.0,0.0314]
[1744853685461,0.1184395,84438.0,84437.0,0.1184409]
[1744853685658,0.1184423,84436.0,84435.0,0.1511431]
[1744853685865,0.1184423,84436.0,84435.0,0.0327]
[1744853686561,0.1184423,84436.0,84434.0,0.1184447]
[1744853686562,0.1184451,84434.0,84433.0,0.00509277]
[1744853687056,0.1184451,84434.0,84433.0,0.12353927]
[1744853687257,0.1516451,84434.0,84433.0,0.12353927]
[1744853687458,0.1516451,84434.0,84433.0,0.00509277]
[1744853688253,0.1516451,84434.0,84433.0,0.00609277]
[1744853689373,0.1184507,84430.0,84429.0,0.00017755]
[1744853690470,0.1184507,84430.0,84429.0,0.00217755]
[1744853690864,0.1184507,84430.0,84429.0,0.00317755]
[1744853691066,8e-05,84430.0,84429.0,0.27162965]
[1744853691269,8e-05,84430.0,84429.0,0.63242965]
[1744853691471,0.07648,84437.0,84436.0,0.1184423]
[1744853691668,0.07648,84437.0,84436.0,0.2684423]
[1744853692272,0.07648,84437.0,84436.0,0.3301423]
[1744853692567,0.1949209,84437.0,84436.0,0.3301423]
[1744853692769,0.1184409,84437.0,84436.0,0.3301423]
[1744853693268,0.1185209,84437.0,84436.0,0.3301423]
[1744853694270,0.1185209,84437.0,84436.0,0.2117]
[1744853694571,0.1185209,84437.0,84436.0,0.2127]
[1744853695068,0.1814209,84437.0,84436.0,0.2117]
[1744853695266,0.1814209,84437.0,84436.0,0.001]
[1744853696666,0.0592217,84436.0,84429.0,0.00017755]
[1744853696975,0.1184507,84430.0,84429.0,0.00017755]
[1744853697173,0.1184507,84430.0,84429.0,0.06087755]
[1744853698076,0.1184507,84430.0,84429.0,0.06287755]
[1744853698267,0.1184507,84430.0,84429.0,0.06487755]
[1744853698464,0.1513507,84430.0,84429.0,0.06487755]
[1744853698669,0.1513507,84430.0,84429.0,0.18332965]
[1744853700079,0.1184507,84430.0,84429.0,0.18332965]
[1744853703280,0.3608,84434.0,84429.0,0.18332965]
[1744853703281,0.00026573,84452.0,84429.0,0.57567755]
[1744853703477,0.0592164,84443.0,84442.0,0.1776475]
[1744853703775,0.0592164,84443.0,84442.0,0.0592164]
[1744853704174,0.0592964,84443.0,84442.0,0.0592164]
[1744853705273,0.0602964,84443.0,84442.0,0.0592164]
[1744853706172,0.0622964,84443.0,84442.0,0.0592164]
[1744853706680,0.0602964,84443.0,84442.0,0.0592164]
[1744853708574,0.0602164,84443.0,84442.0,0.0592164]
[1744853708776,0.0602964,84443.0,84442.0,0.0592164]
[1744853708977,0.1184353,84441.0,84440.0,0.0592182]
[1744853709178,0.1184353,84441.0,84440.0,0.0918182]
[1744853709581,0.1184353,84441.0,84440.0,0.0326]
[1744853710070,0.1184353,84441.0,84440.0,0.1510367]
[1744853710974,0.1194353,84441.0,84440.0,0.1510367]
[1744853711879,0.1509353,84441.0,84440.0,0.1610367]
[1744853713780,0.001,84441.0,84440.0,0.1610367]
[1744853714185,0.00014581,84451.0,84443.0,0.0592157]
[1744853714486,0.1234067,84462.0,84456.0,0.0592071]
[1744853714787,0.1234067,84462.0,84461.0,0.1184073]
[1744853715086,0.1234067,84462.0,84461.0,0.2984073]
[1744853715391,0.12351471,84462.0,84461.0,0.2984073]
[1744853715876,0.00510801,84462.0,84461.0,0.2984073]
[1744853716588,0.00510801,84462.0,84461.0,0.2994073]
[1744853716986,0.00510801,84462.0,84461.0,0.2984073]
[1744853717185,0.00510801,84462.0,84461.0,0.2994073]
[1744853717375,0.12351391,84462.0,84461.0,0.2994073]
[1744853717785,0.00510801,84462.0,84461.0,0.3014073]
[1744853718585,0.00017765,84470.0,84469.0,0.118396]
[1744853718790,0.00014581,84478.0,84477.0,0.1183848]
[1744853718987,0.07392619,84483.0,84482.0,0.1183778]
[1744853719285,0.07392619,84483.0,84482.0,0.2783778]
[1744853719881,0.19230259,84483.0,84482.0,0.1183778]
[1744853720083,0.118382,84479.0,84478.0,0.1485821]
[1744853720283,0.118382,84479.0,84478.0,0.1183821]
[1744853721088,0.4544,84482.0,84478.0,0.1183821]
[1744853721089,0.0305,84482.0,84481.0,0.1183792]
[1744853721291,0.005,84488.0,84487.0,0.1183708]
[1744853721490,0.005,84488.0,84487.0,0.2783708]
[1744853721789,0.00508,84488.0,84487.0,0.2783708]
[1744853721984,0.005,84488.0,84487.0,0.3394708]
[1744853722190,0.00508,84488.0,84487.0,0.3394708]
[1744853722691,0.00508,84488.0,84487.0,0.3404708]
[1744853723284,0.1234494,84488.0,84487.0,0.3404708]
[1744853723792,0.1234494,84488.0,84487.0,0.3394708]
[1744853725994,0.1234494,84488.0,84487.0,0.3404708]
[1744853726182,0.1234494,84488.0,84487.0,0.3414708]
[1744853726381,0.1234494,84488.0,84487.0,0.1814708]
[1744853726587,0.00508,84488.0,84487.0,0.1814708]
[1744853727094,0.00508,84488.0,84487.0,0.3314708]
[1744853727285,0.00508,84488.0,84487.0,0.1814708]
[1744853727485,0.03678,84488.0,84487.0,0.1814708]
[1744853728200,0.1551494,84488.0,84487.0,0.1814708]
[1744853728699,0.00508,84488.0,84487.0,0.3614708]
[1744853728991,0.00900291,84528.0,84487.0,1.1639]
[1744853729185,0.0325,84518.0,84513.0,0.1183344]
[1744853729382,0.0325,84518.0,84513.0,0.2683344]
[1744853729585,0.00508,84514.0,84513.0,0.2683344]
[1744853729800,0.00508,84514.0,84513.0,0.3308344]
[1744853730091,0.00908,84514.0,84513.0,0.3308344]
[1744853730291,0.01108,84514.0,84513.0,0.3308344]
[1744853730496,0.00010801,84521.0,84515.0,0.0591654]
[1744853730796,0.00010801,84521.0,84520.0,0.1183246]
[1744853730998,0.03267733,84522.0,84521.0,0.1183232]
[1744853731196,0.00017733,84522.0,84521.0,0.2783232]
[1744853732197,0.11857913,84522.0,84521.0,0.2783232]
[1744853732391,0.12457913,84522.0,84521.0,0.2783232]
[1744853732593,0.00625733,84522.0,84521.0,0.2783232]
[1744853732788,0.00225733,84522.0,84521.0,0.2783232]
[1744853732993,0.12057913,84522.0,84521.0,0.2783232]
[1744853733295,0.00225733,84522.0,84521.0,0.2783232]
[1744853733596,0.12057913,84522.0,84521.0,0.2783232]
[1744853734098,0.12057913,84522.0,84521.0,0.1183232]
[1744853735198,0.12057913,84522.0,84507.0,0.3608]
[1744853735199,0.11834,84510.0,84509.0,0.0591695]
[1744853735403,0.11834,84510.0,84499.0,0.3608]
[1744853735404,0.0591693,84510.0,84499.0,0.36948848]
[1744853735698,0.1183442,84506.0,84501.0,0.1183506]
[1744853735902,0.1183442,84506.0,84499.0,0.4199766]
[1744853736088,0.3608,84506.0,84486.0,0.01]
[1744853736292,0.1775391,84500.0,84499.0,0.1183537]
[1744853736995,0.0591783,84500.0,84499.0,0.1183537]
[1744853737389,0.0591755,84502.0,84501.0,0.1183512]
[1744853738885,0.0653,84505.0,84498.0,0.0314]
[1744853739086,0.00017754,84508.0,84507.0,0.1183428]
[1744853739291,0.00017754,84508.0,84507.0,0.2883428]
[1744853739693,0.00025754,84508.0,84507.0,0.2683428]
[1744853739895,0.00025754,84508.0,84507.0,0.3335428]
[1744853740489,0.00025754,84508.0,84507.0,0.3355428]
[1744853740893,0.00017754,84508.0,84507.0,0.3355428]
[1744853741597,0.00017754,84508.0,84507.0,0.3375428]
[1744853741898,0.00025754,84508.0,84507.0,0.3375428]
[1744853742294,0.00025754,84508.0,84507.0,0.3355428]
[1744853742593,0.3608,84523.0,84522.0,0.1183218]
[1744853742794,0.36090801,84523.0,84522.0,0.1183218]
[1744853743002,0.3608,84523.0,84522.0,0.2883218]
[1744853743301,0.00010801,84533.0,84532.0,0.1183078]
[1744853743597,0.1183039,84535.0,84534.0,0.1774544]
[1744853743799,0.0891507,84537.0,84529.0,0.0629]
[1744853743800,0.1183106,84532.0,84531.0,0.1183088]
[1744853743987,0.1774648,84532.0,84531.0,0.1183088]
[1744853744402,0.4819542,84532.0,84531.0,0.1183088]
[1744853745000,0.4859542,84532.0,84531.0,0.1183088]
[1744853745301,0.4859542,84532.0,84531.0,0.1514088]
[1744853745700,0.3648,84532.0,84531.0,0.1514088]
[1744853745903,0.004,84532.0,84531.0,0.1514088]
[1744853746101,0.1223878,84532.0,84531.0,0.1514088]
[1744853746803,0.00408,84532.0,84530.0,0.033]
[1744853747005,0.0591571,84528.0,84524.0,0.00017754]
[1744853747305,0.0314,84531.0,84524.0,0.11849654]
[1744853747306,0.4791176,84525.0,84524.0,0.11849654]
[1744853747505,0.3608,84525.0,84524.0,0.34765564]
[1744853748010,0.004,84532.0,84531.0,0.1183092]
[1744853748213,0.0308,84533.0,84532.0,0.1183078]
[1744853748398,0.1490997,84538.0,84537.0,0.1183008]
[1744853749902,0.1802997,84538.0,84537.0,0.1183008]
[1744853750601,0.1862997,84538.0,84537.0,0.1183008]
[1744853753707,0.1550997,84538.0,84537.0,0.1183008]
[1744853754503,0.1551797,84538.0,84537.0,0.1183008]
[1744853756009,0.1243797,84538.0,84537.0,0.1183008]
[1744853756209,0.00026573,84547.0,84537.0,0.4]
[1744853756411,0.1182723,84558.0,84557.0,0.11827]
[1744853756717,0.4199344,84560.0,84559.0,0.11827]
[1744853757612,0.4199344,84560.0,84559.0,0.11027]
[1744853757814,0.4200144,84560.0,84559.0,0.11027]
[1744853758016,0.4516344,84560.0,84559.0,0.11027]
[1744853758217,0.4597144,84560.0,84559.0,0.11127]
[1744853759214,0.40058,84560.0,84559.0,0.11127]
[1744853759621,0.5188486,84560.0,84559.0,0.11127]
[1744853760014,0.40058,84560.0,84559.0,0.11127]
[1744853760622,0.5188486,84560.0,84559.0,0.11127]
[1744853760920,0.5108486,84560.0,84559.0,0.11027]
[1744853761120,0.39258,84560.0,84559.0,0.11027]
[1744853761914,0.5108486,84560.0,84559.0,0.11027]
[1744853762817,0.5108486,84560.0,84559.0,0.14277]
[1744853763024,0.39258,84560.0,84559.0,0.14277]
[1744853764021,0.1182798,84552.0,84543.0,0.0591461]
[1744853764321,0.1182798,84552.0,84545.0,0.0591446]
[1744853764523,0.1182798,84552.0,84550.0,0.118282]
[1744853764725,0.1182798,84552.0,84551.0,0.11845863]
[1744853764925,0.1835798,84552.0,84551.0,0.11845863]
[1744853765626,0.1835798,84552.0,84551.0,0.00017743]
[1744853766218,0.1835798,84552.0,84551.0,0.11845863]
[1744853766519,0.5443798,84552.0,84551.0,0.00017743]
[1744853770930,0.5443798,84552.0,84551.0,0.11845863]
[1744853771321,0.5112798,84552.0,84551.0,0.11845863]
[1744853771923,0.5112798,84552.0,84551.0,0.00017743]
[1744853775517,0.1504798,84552.0,84551.0,0.00017743]
[1744853775722,0.5112798,84552.0,84551.0,0.00017743]
[1744853776933,0.1504798,84552.0,84551.0,0.00017743]
[1744853777127,0.5112798,84552.0,84551.0,0.00017743]
[1744853778534,0.5112798,84552.0,84540.0,0.0591478]
[1744853778535,0.1774483,84540.0,84537.0,0.0591501]
[1744853778728,0.1774483,84540.0,84539.0,0.0591486]
[1744853779034,0.118298,84539.0,84538.0,0.1507994]
[1744853779219,0.118298,84539.0,84522.0,0.0591608]
[1744853779220,0.1183148,84527.0,84522.0,0.0591608]
[1744853779423,0.1183273,84519.0,84514.0,0.0591665]
[1744853779626,0.2366561,84519.0,84518.0,0.1183274]
[1744853779825,0.0591631,84519.0,84518.0,0.2783274]
[1744853780021,0.1183196,84524.0,84523.0,0.118319]
[1744853780225,0.1183196,84524.0,84523.0,0.298319]
[1744853780432,0.1183996,84524.0,84523.0,0.118319]
[1744853781331,0.1183996,84524.0,84516.0,0.0312]
[1744853781332,0.1183288,84517.0,84516.0,0.0312]
[1744853781529,0.4791288,84517.0,84516.0,0.0312]
[1744853781737,0.4791288,84517.0,84516.0,0.1495302]
[1744853783328,0.4791288,84517.0,84516.0,0.1505302]
[1744853783526,0.0591724,84506.0,84499.0,0.0591768]
[1744853783831,0.1183526,84502.0,84501.0,0.1775193]
[1744853784335,0.1775276,84502.0,84501.0,0.0591737]
[1744853785034,0.1775276,84502.0,84501.0,0.0671737]
[1744853785432,0.470556,84529.0,84502.0,0.0591745]
[1744853785731,0.1183316,84515.0,84514.0,0.1774943]
[1744853785923,0.1183316,84515.0,84514.0,0.3474943]
[1744853786123,0.1184116,84515.0,84514.0,0.17]
[1744853786323,0.1183344,84513.0,84512.0,0.1510358]
[1744853787426,0.1183344,84513.0,84512.0,0.1520358]
[1744853787840,0.1183344,84513.0,84512.0,0.1570358]
[1744853789339,0.1183344,84513.0,84512.0,0.006]
[1744853789725,0.4791344,84513.0,84512.0,0.006]
[1744853790533,0.4791344,84513.0,84512.0,0.1243358]
[1744853790729,0.1183344,84513.0,84512.0,0.1243358]
[1744853791728,0.4791344,84513.0,84512.0,0.1243358]
[1744853792841,0.4791344,84513.0,84512.0,0.1557358]
[1744853793637,0.1183344,84513.0,84512.0,0.1557358]
[1744853793941,0.4791344,84513.0,84512.0,0.1557358]
[1744853794241,0.1183344,84513.0,84512.0,0.1557358]
[1744853794441,0.4791344,84513.0,84512.0,0.1557358]
[1744853794937,0.4792144,84513.0,84512.0,0.1557358]
[1744853795943,0.4792144,84513.0,84512.0,0.0374]
[1744853796836,0.4792144,84513.0,84512.0,0.0704]
[1744853797236,0.5107144,84513.0,84512.0,0.0704]
[1744853798331,0.5107144,84513.0,84512.0,0.006]
[1744853799039,0.1183428,84507.0,84506.0,0.00017743]
[1744853799940,0.1833428,84507.0,84506.0,0.00017743]
[1744853800249,0.1183568,84497.0,84496.0,0.1183575]
[1744853800444,0.1183568,84497.0,84496.0,0.1504575]
[1744853801941,0.1183568,84497.0,84496.0,0.0676]
[1744853802344,0.1183568,84497.0,84496.0,0.0766]
[1744853802541,0.5121568,84497.0,84496.0,0.0766]
[1744853802939,0.5121568,84497.0,84496.0,0.013]
[1744853803947,0.5121568,84497.0,84496.0,0.005]
[1744853805054,0.5121568,84497.0,84496.0,0.001]
[1744853805246,0.118368,84489.0,84485.0,0.00508963]
[1744853805447,0.479168,84489.0,84485.0,0.03538963]
[1744853806052,0.542468,84489.0,84487.0,0.1183706]
[1744853806253,0.151268,84489.0,84488.0,0.18164683]
[1744853806550,0.118448,84489.0,84488.0,0.18164683]
[1744853806749,0.118448,84489.0,84488.0,0.18564683]
[1744853806950,0.118448,84489.0,84488.0,0.33564683]
[1744853807344,0.118448,84489.0,84488.0,0.33664683]
[1744853808055,0.118368,84489.0,84488.0,0.21827743]
[1744853808256,0.118448,84489.0,84488.0,0.06827743]
[1744853808647,0.150848,84489.0,84488.0,0.06827743]
[1744853811750,0.150848,84489.0,84488.0,0.18664683]
[1744853812049,0.150848,84489.0,84488.0,0.06827743]
[1744853812447,0.150848,84489.0,84488.0,0.18664683]
[1744853814260,0.150848,84489.0,84488.0,0.06827743]
[1744853814846,0.150848,84489.0,84488.0,0.00517743]
[1744853815550,0.511648,84489.0,84488.0,0.00517743]
[1744853818264,0.150848,84489.0,84488.0,0.15517743]
[1744853818450,0.118368,84489.0,84488.0,0.27354683]
[1744853818852,0.118368,84489.0,84488.0,0.00517743]
[1744853819051,0.479248,84489.0,84488.0,0.00517743]
[1744853819251,0.479168,84489.0,84488.0,0.00517743]
[1744853819552,0.479248,84489.0,84488.0,0.00517743]
[1744853819752,0.542848,84489.0,84488.0,0.00517743]
[1744853832564,0.182048,84489.0,84488.0,0.00517743]
[1744853833070,0.542848,84489.0,84488.0,0.00517743]
[1744853838966,0.1183834,84478.0,84477.0,0.0307]
[1744853839173,0.059191,84479.0,84478.0,0.0619]
[1744853839362,0.1183989,84467.0,84466.0,0.0313]
[1744853839568,0.1184031,84464.0,84463.0,0.18032617]
[1744853840672,0.13001896,84464.0,84463.0,0.18032617]
[1744853840871,0.13001896,84464.0,84463.0,0.18432617]
[1744853841073,0.13001896,84464.0,84463.0,0.004]
[1744853841773,0.1184031,84464.0,84463.0,0.004]
[1744853842677,0.1184031,84464.0,84463.0,0.011]
[1744853843274,0.4792031,84464.0,84463.0,0.011]
[1744853843965,0.5105031,84464.0,84463.0,0.011]
[1744853845669,0.0592051,84459.0,84440.0,0.3608]
[1744853845867,0.0592051,84459.0,84453.0,0.031]
[1744853845868,0.1776256,84454.0,84453.0,0.031]
[1744853846074,0.5384256,84454.0,84453.0,0.031]
[1744853848069,0.1776256,84454.0,84453.0,0.031]
[1744853848683,0.1776256,84454.0,84453.0,0.033]
[1744853848883,0.1776256,84454.0,84453.0,0.037]
[1744853849379,0.1776256,84454.0,84453.0,0.047]
[1744853854184,0.5384256,84454.0,84453.0,0.047]
[1744853855681,0.5384256,84454.0,84453.0,0.1554185]
[1744853855876,0.1776256,84454.0,84453.0,0.0689]
[1744853862186,0.1776256,84454.0,84453.0,0.0789]
[1744853865389,0.2083256,84454.0,84453.0,0.0789]
[1744853869291,0.2389256,84454.0,84453.0,0.0789]
[1744853869486,0.5997256,84454.0,84453.0,0.016]
[1744853869693,0.1184269,84447.0,84446.0,0.0322]
[1744853869878,0.1184269,84447.0,84446.0,0.0722]
[1744853870084,0.1184269,84447.0,84446.0,0.1052]
[1744853870281,0.1184269,84447.0,84446.0,0.04]
[1744853870590,0.1826269,84447.0,84446.0,0.04]
[1744853871093,0.1826269,84447.0,84446.0,0.049]
[1744853871484,0.1826269,84447.0,84446.0,0.082]
[1744853872186,0.1514269,84447.0,84446.0,0.2004283]
[1744853872392,0.1514269,84447.0,84446.0,0.2647283]
[1744853872585,0.1515069,84447.0,84446.0,0.2647283]
[1744853880501,0.1515069,84447.0,84446.0,0.2314283]
[1744853881292,0.1515069,84447.0,84446.0,0.2004283]
[1744853881492,0.1515069,84447.0,84446.0,0.082]
[1744853881693,0.1515069,84447.0,84446.0,0.2004283]
[1744853881893,0.1515069,84447.0,84446.0,0.082]
[1744853882093,0.1515069,84447.0,84446.0,0.049]
[1744853883696,0.19526719,84447.0,84446.0,0.049]
[1744853883895,0.1836069,84447.0,84446.0,0.049]
[1744853884699,0.1836069,84447.0,84446.0,0.1674283]
[1744853885090,0.1836069,84447.0,84446.0,0.049]